bitfinex-derivatives/quotes_ETHF0:USTF0_20240923
["timestamp","ask_amount","ask_price","bid_price","bid_amount"]
[1727074881181,0.3883,2655.7,2655.3,0.37657]
[1727074881380,0.3883,2655.7,2655.4,0.37657]
[1727074881894,0.3883,2655.7,2655.5,0.37655]
[1727074882186,3.94409923,2656.1,2655.8,0.37651]
[1727074882690,3.94409923,2656.1,2655.7,0.37652]
[1727074883690,3.94409923,2656.1,2655.6,0.37653]
[1727074883691,6.38056923,2656.1,2655.6,0.37653]
[1727074883892,6.00409923,2656.1,2655.6,0.37653]
[1727074885397,6.00409923,2656.1,2655.5,0.74025]
[1727074885398,0.37649,2656.0,2655.5,0.74025]
[1727074885583,0.3654,2656.0,2655.6,0.37653]
[1727074886382,0.74189,2656.0,2655.5,0.74025]
[1727074887089,0.74189,2656.0,2655.6,0.37654]
[1727074887090,0.3654,2656.0,2655.6,0.37654]
[1727074887292,0.74188,2656.0,2655.6,0.37654]
[1727074887495,0.74188,2656.0,2655.5,0.37655]
[1727074887496,2.06,2655.8,2655.5,0.37655]
[1727074887792,0.7465,2655.7,2655.5,0.37655]
[1727074888202,0.7465,2655.7,2655.4,0.37656]
[1727074889294,2.43654,2655.6,2655.2,0.3658]
[1727074889595,2.43654,2655.6,2655.1,0.3792]
[1727074889596,2.06,2655.6,2655.1,0.3792]
[1727074889794,2.06,2655.6,2655.2,0.37]
[1727074890195,2.06,2655.6,2655.1,0.3766]
[1727074890196,2.43655,2655.6,2655.1,0.3766]
[1727074890397,0.3934,2655.5,2655.1,0.3766]
[1727074890690,0.3934,2655.5,2655.2,0.37659]
[1727074891792,2.06,2655.6,2655.2,0.37659]
[1727074891992,2.43654,2655.6,2655.2,0.37659]
[1727074892195,2.43654,2655.6,2655.0,40.8]
[1727074892196,2.06,2655.6,2655.1,0.37661]
[1727074892399,2.43654,2655.6,2655.2,0.3766]
[1727074892800,2.06,2655.6,2655.2,0.3766]
[1727074893301,0.7465,2655.7,2655.4,0.37656]
[1727074893701,0.7465,2655.7,2655.3,0.37657]
[1727074893998,1.12303,2655.7,2655.3,0.37658]
[1727074895090,0.7465,2655.7,2655.5,0.37655]
[1727074896207,0.7465,2655.7,2655.3,0.7365]
[1727074896396,0.7465,2655.7,2655.5,0.37654]
[1727074897797,0.7465,2655.7,2655.4,0.37656]
[1727074898996,0.7465,2655.7,2655.3,0.3717]
[1727074898997,0.3788,2655.6,2655.3,0.3717]
[1727074899201,0.3788,2655.6,2655.3,0.74828]
[1727074899399,0.3788,2655.6,2655.3,0.3717]
[1727074900192,0.3788,2655.6,2655.2,1.73371704]
[1727074900397,2.4388,2655.6,2655.2,0.98572704]
[1727074900606,2.81534,2655.6,2655.1,4.57013704]
[1727074900792,2.81534,2655.6,2655.2,0.3766]
[1727074901002,2.4388,2655.6,2655.2,0.3766]
[1727074901200,2.4388,2655.6,2655.3,0.37658]
[1727074901511,2.4388,2655.6,2655.2,1.36231704]
[1727074901704,2.4388,2655.6,2655.3,0.37658]
[1727074901904,2.4388,2655.6,2655.2,0.98572704]
[1727074902208,2.4388,2655.6,2655.3,0.378]
[1727074903400,2.4388,2655.6,2655.3,1.36372704]
[1727074907013,2.4388,2655.6,2655.4,0.58145884]
[1727074907213,2.4388,2655.6,2655.3,1.36372704]
[1727074907400,2.4388,2655.6,2655.4,0.58146709]
[1727074907619,2.4388,2655.6,2655.3,1.36372704]
[1727074907799,2.4388,2655.6,2655.4,0.58152572]
[1727074908014,2.4388,2655.6,2655.3,1.36372704]
[1727074908213,2.4388,2655.6,2655.4,0.58153021]
[1727074908418,2.4388,2655.6,2655.3,1.74030704]
[1727074908615,0.7465,2655.7,2655.4,1.56730721]
[1727074908917,0.7465,2655.7,2655.5,3.45903468]
[1727074909116,0.7465,2655.7,2655.6,0.58158017]
[1727074909315,0.7465,2655.7,2655.6,1.94384721]
[1727074909617,0.7465,2655.7,2655.6,1.94387419]
[1727074909912,0.7465,2655.7,2655.6,1.94387382]
[1727074911215,0.7465,2655.7,2655.6,3.09522989]
[1727074911416,0.98682445,2656.0,2655.6,8.44552949]
[1727074911711,5.31642368,2656.2,2655.9,0.98608064]
[1727074912013,0.3766,2656.0,2655.9,0.98603719]
[1727074912217,0.3766,2656.0,2655.9,1.56761451]
[1727074912606,0.3766,2656.0,2655.9,0.58157732]
[1727074912816,3.79991445,2656.0,2655.7,0.98603719]
[1727074913009,3.79991445,2656.0,2655.6,0.98603719]
[1727074913209,3.79991445,2656.0,2655.7,0.58158278]
[1727074913518,2.06,2655.8,2655.6,0.98603719]
[1727074913907,0.3984,2655.7,2655.6,0.98603719]
[1727074914220,0.3984,2655.7,2655.6,1.56763701]
[1727074914407,4.164,2655.7,2655.6,0.58159982]
[1727074914913,0.3984,2655.7,2655.6,0.58159982]
[1727074915120,0.3984,2655.7,2655.6,0.95813982]
[1727074915318,0.3984,2655.7,2655.6,1.94417701]
[1727074915619,0.3984,2655.7,2655.6,2.34177701]
[1727074916714,0.3984,2655.7,2655.6,1.96523701]
[1727074917512,0.3984,2655.7,2655.6,1.38363719]
[1727074917821,0.3984,2655.7,2655.6,1.96545172]
[1727074918018,0.3984,2655.7,2655.6,1.38363719]
[1727074918320,0.3984,2655.7,2655.6,1.96546641]
[1727074918618,0.3984,2655.7,2655.6,3.60840907]
[1727074918806,0.98682445,2655.9,2655.7,0.37652]
[1727074919010,1.37692445,2655.9,2655.8,1.94500685]
[1727074919315,0.3901,2655.9,2655.8,1.94500685]
[1727074919620,0.98682445,2656.0,2655.9,0.3765]
[1727074919819,0.98682445,2656.1,2655.9,2.33581299]
[1727074920013,0.98682445,2656.1,2656.0,0.95830922]
[1727074920214,5.32472368,2656.2,2656.0,2.32739299]
[1727074920409,5.32472368,2656.2,2656.0,1.74556377]
[1727074920614,5.32472368,2656.2,2656.1,0.58195097]
[1727074920615,5.3233639,2656.2,2656.1,0.58195097]
[1727074923022,1.37926467,2656.2,2656.1,0.58195097]
[1727074923319,6.01545911,2656.2,2655.9,0.98668377]
[1727074923514,3.04500886,2656.1,2656.0,0.5818243]
[1727074923910,7.18627886,2656.1,2656.0,0.5818243]
[1727074924115,7.18627886,2656.1,2655.8,0.98668377]
[1727074924116,0.3765,2656.0,2655.8,0.98668377]
[1727074924323,1.35480886,2656.0,2655.9,0.58184472]
[1727074924715,5.11960886,2656.0,2655.9,0.58184472]
[1727074924914,5.49608886,2656.0,2655.9,0.58184472]
[1727074925322,5.49608886,2656.0,2655.8,0.98668377]
[1727074925517,5.49608886,2656.0,2655.9,0.58186832]
[1727074925518,1.73128886,2656.0,2655.9,0.58186832]
[1727074925720,1.73128886,2656.0,2655.8,0.98668377]
[1727074926221,0.98500886,2655.9,2655.7,0.98668377]
[1727074926523,2.4447,2655.8,2655.7,0.98668377]
[1727074926716,6.94971,2655.8,2655.7,1.56861068]
[1727074926917,6.94971,2655.8,2655.3,5.6626615]
[1727074926918,0.37656,2655.5,2655.1,1.83689891]
[1727074927127,2.06,2655.2,2655.1,1.47739891]
[1727074927328,2.06,2655.2,2655.0,40.8]
[1727074927329,0.37661,2655.1,2655.0,1.47739891]
[1727074927624,3.7664,2655.1,2654.5,1.47739891]
[1727074927823,2.06,2654.6,2654.4,1.47739891]
[1727074928018,2.06,2654.6,2654.4,1.85409891]
[1727074928220,2.06,2654.6,2654.4,1.47739891]
[1727074928926,3.7672,2654.5,2654.1,5.06193891]
[1727074929122,2.06,2654.4,2654.2,1.14846333]
[1727074929322,2.06,2654.4,2654.1,4.68519891]
[1727074929526,2.06,2654.4,2654.1,45.86194891]
[1727074929817,2.06,2654.4,2654.1,44.38455]
[1727074931222,2.06,2654.4,2654.1,44.0078]
[1727074934328,2.06,2654.4,2654.1,44.38455]
[1727074934831,2.06,2654.4,2654.2,0.37674]
[1727074935030,2.06,2654.4,2654.1,44.38454]
[1727074935833,2.4492,2654.6,2654.1,44.38455]
[1727074936026,2.4492,2654.6,2654.2,0.37673]
[1727074936734,2.4492,2654.6,2654.1,44.38454]
[1727074937535,2.4492,2654.6,2654.2,0.37674]
[1727074939524,2.4492,2654.6,2654.1,44.38454]
[1727074939729,2.82588,2654.6,2654.1,40.8]
[1727074939933,2.4492,2654.6,2654.1,40.8]
[1727074940136,2.82589,2654.6,2654.1,40.8]
[1727074940426,2.82589,2654.6,2654.1,41.17675]
[1727074940736,2.06,2654.4,2654.1,40.8]
[1727074942029,2.06,2654.4,2654.1,41.17675]
[1727074943627,0.3721,2654.3,2654.1,40.8]
[1727074944735,0.3721,2654.3,2654.1,41.17675]
[1727074945832,0.3721,2654.3,2654.2,0.37674]
[1727074946022,0.3721,2654.3,2654.2,0.3753]
[1727074946222,0.3721,2654.3,2654.2,0.7668]
[1727074947334,2.06,2654.4,2654.2,0.7668]
[1727074947928,0.3835,2654.5,2654.2,0.7668]
[1727074951339,5.2678,2654.6,2654.2,0.7668]
[1727074951638,3.2078,2654.6,2654.4,0.3767]
[1727074951941,3.2078,2654.6,2654.5,0.3937]
[1727074953039,5.2678,2654.6,2654.5,0.3937]
[1727074953234,5.2678,2654.6,2654.2,0.7668]
[1727074953439,5.2678,2654.6,2654.2,1.1605]
[1727074953440,0.3594,2654.5,2654.2,1.1605]
[1727074954035,2.06,2654.4,2654.2,1.1605]
[1727074954734,5.2678,2654.6,2654.2,1.53723]
[1727074954939,5.64448,2654.6,2654.2,1.1605]
[1727074955140,0.3594,2654.5,2654.2,1.1605]
[1727074956041,0.3594,2654.5,2654.2,1.53723]
[1727074956237,0.7361,2654.5,2654.2,1.1605]
[1727074957443,0.7361,2654.5,2653.9,3.2078]
[1727074957444,5.8272,2654.4,2653.9,3.2078]
[1727074957754,2.06,2654.1,2653.9,3.2078]
[1727074957945,0.3794,2654.0,2653.9,3.58458]
[1727074958144,0.3794,2654.0,2653.9,3.2078]
[1727074958346,0.3794,2654.0,2653.9,3.58458]
[1727074958943,2.06,2654.3,2653.9,3.58458]
[1727074959245,2.06,2654.3,2654.0,0.3766]
[1727074959453,2.06,2654.5,2654.2,0.37674]
[1727074959849,2.06,2654.5,2654.1,1.13865]
[1727074961259,2.06,2654.3,2654.1,1.13865]
[1727074962354,2.06,2654.3,2654.2,0.37674]
[1727074963256,2.06,2654.3,2654.1,1.13864]
[1727074964152,2.06,2654.3,2654.2,0.37674]
[1727074965154,2.06,2654.3,2654.1,1.13864]
[1727074966152,2.06,2654.3,2654.2,0.37674]
[1727074966653,2.06,2654.3,2654.1,1.13864]
[1727074966853,2.06,2654.3,2654.1,0.7619]
[1727074967355,0.398,2654.2,2654.1,0.7619]
[1727074967668,0.77474,2654.2,2653.9,3.2078]
[1727074967859,2.06,2654.1,2653.9,3.2078]
[1727074970860,2.06,2654.1,2653.8,44.38458]
[1727074971958,2.06,2654.1,2653.9,0.37678]
[1727074972260,2.06,2654.1,2654.0,0.57774706]
[1727074972457,3.04417295,2654.1,2654.0,0.57774706]
[1727074972666,0.98417295,2654.1,2654.0,0.57774706]
[1727074973767,5.828,2654.1,2654.0,0.57774706]
[1727074974467,7.30425943,2654.1,2654.0,0.57774706]
[1727074975367,16.88880943,2654.1,2654.0,0.57774706]
[1727074975564,15.41255,2654.1,2654.0,0.57774706]
[1727074975769,0.3768,2653.8,2653.6,1.47739891]
[1727074975960,1.12891,2653.7,2653.6,1.47739891]
[1727074976160,4.9106,2653.7,2653.6,2.26860284]
[1727074976658,1.37380861,2653.7,2653.6,4.67065907]
[1727074976961,0.98329736,2653.7,2653.6,7.78200453]
[1727074977167,0.98329736,2653.9,2653.6,8.26923626]
[1727074977357,0.98329736,2653.9,2653.8,1.85801934]
[1727074977566,0.98329736,2654.0,2653.9,0.37678]
[1727074977768,0.98329736,2654.0,2653.9,3.76405406]
[1727074978066,0.98329736,2654.0,2653.9,5.80641259]
[1727074978467,0.98329736,2654.0,2653.9,5.80586424]
[1727074980569,1.47530095,2654.2,2653.9,5.80586424]
[1727074980570,0.98329736,2654.2,2654.1,0.37675]
[1727074980766,5.80270018,2654.4,2654.2,0.37674]
[1727074980767,0.98329736,2654.3,2654.2,0.37674]
[1727074980962,0.98329736,2654.3,2654.2,45.84975525]
[1727074981173,0.98329736,2654.3,2654.2,43.80739672]
[1727074981368,3.04329736,2654.3,2654.2,43.43065672]
[1727074981575,3.04329736,2654.3,2654.2,45.47283889]
[1727074981576,2.06,2654.3,2654.2,45.47283889]
[1727074982374,2.06,2654.3,2654.2,42.48966491]
[1727074982697,3.2078,2654.5,2654.2,42.48966491]
[1727074982698,1.72161303,2654.7,2654.3,3.7672]
[1727074982862,0.86970004,2655.2,2655.1,0.37661]
[1727074983170,7.93899923,2656.1,2655.3,0.37657]
[1727074983171,2.06,2655.7,2655.3,0.37657]
[1727074983372,2.06,2655.7,2655.6,1.48038235]
[1727074983673,2.06,2656.0,2655.6,2.10335596]
[1727074983971,2.06,2656.0,2655.7,1.7976835]
[1727074984173,2.06,2656.0,2655.8,0.57709068]
[1727074984371,2.06,2656.0,2655.6,1.48038235]
[1727074984576,2.06,2656.0,2655.7,0.57651326]
[1727074984879,2.06,2656.0,2655.7,0.37652]
[1727074985166,2.06,2656.0,2655.8,0.9530124]
[1727074985363,2.06,2656.0,2655.8,0.37651]
[1727074985963,2.06,2656.0,2655.9,0.3765]
[1727074986363,0.7871,2656.1,2655.9,0.37649]
[1727074986364,0.3906,2656.1,2655.9,0.37649]
[1727074986670,2.06,2656.0,2655.7,3.58432]
[1727074986867,2.06,2656.0,2655.8,0.37651]
[1727074987771,2.06,2656.0,2655.7,3.2078]
[1727074987976,2.06,2656.0,2655.7,3.58432]
[1727074988480,2.06,2656.0,2655.5,0.37655]
[1727074988670,2.06,2656.0,2655.3,2.13938235]
[1727074988974,2.06,2656.0,2655.6,0.37653]
[1727074989977,2.06,2656.0,2655.7,0.37651]
[1727074990191,0.3906,2656.1,2655.7,0.37651]
[1727074991369,0.3906,2656.1,2655.6,0.37653]
[1727074991571,0.3906,2656.1,2655.7,0.37652]
[1727074992168,0.3906,2656.1,2655.6,0.37653]
[1727074993370,0.3906,2656.1,2655.3,0.659]
[1727074993580,2.43648,2656.0,2655.5,3.58435]
[1727074993781,2.06,2656.0,2655.5,0.37655]
[1727074993974,2.06,2656.0,2655.3,0.659]
[1727074993975,2.06,2655.7,2655.3,0.37657]
[1727074994169,0.7492,2655.6,2655.4,0.37656]
[1727074995583,0.7492,2655.6,2655.3,0.37657]
[1727074996176,0.7492,2655.6,2655.2,3.2078]
[1727074996479,2.06,2655.3,2655.2,3.2078]
[1727074996678,2.06,2655.3,2654.6,0.3744]
[1727074997079,2.06,2655.3,2654.8,0.37665]
[1727074997377,2.06,2655.3,2654.9,0.37664]
[1727074997782,2.43658,2655.3,2654.8,0.37665]
[1727074999678,3.2078,2655.5,2655.2,0.37659]
[1727074999679,5.2678,2655.5,2655.2,0.37659]
[1727074999879,3.2078,2655.5,2655.1,0.3766]
[1727075000080,3.2078,2655.5,2654.9,0.2945]
[1727075000280,3.2078,2655.5,2655.1,0.3766]
[1727075001875,5.2678,2655.5,2655.1,0.3766]
[1727075002277,5.2678,2655.5,2654.9,0.2945]
[1727075002981,5.2678,2655.5,2655.2,0.37659]
[1727075003286,5.2678,2655.5,2655.1,0.3766]
[1727075003681,5.2678,2655.5,2655.2,0.37659]
[1727075004491,3.2078,2655.5,2655.2,0.37659]
[1727075006593,3.2078,2655.5,2655.3,0.37657]
[1727075006994,3.2078,2655.5,2655.4,0.37657]
[1727075007790,3.2078,2655.5,2654.9,0.2945]
[1727075008399,3.2078,2655.5,2655.4,0.37657]
[1727075009899,3.957,2655.6,2655.4,0.37657]
[1727075010994,3.957,2655.6,2655.3,0.37657]
[1727075011502,3.957,2655.6,2655.2,0.37659]
[1727075011799,2.06,2655.5,2655.1,0.3766]
[1727075012301,2.43656,2655.5,2655.0,0.37662]
[1727075012502,2.43656,2655.5,2655.1,0.37661]
[1727075012704,0.3766,2655.2,2654.5,3.2078]
[1727075012913,3.1716,2655.1,2654.5,3.2078]
[1727075013300,3.1716,2655.1,2654.6,40.8]
[1727075013702,1.1116,2655.1,2654.8,0.37664]
[1727075014100,1.1116,2655.1,2654.6,40.8]
[1727075014302,0.3671,2655.1,2655.0,0.37662]
[1727075014908,0.3671,2655.1,2654.8,0.37665]
[1727075015107,0.3663,2655.0,2654.6,40.8]
[1727075015313,0.764,2655.0,2654.7,0.37667]
[1727075015812,0.764,2655.0,2654.8,0.37665]
[1727075016308,0.764,2655.0,2654.9,0.37664]
[1727075016612,0.764,2655.0,2654.8,0.37665]
[1727075016812,0.3671,2655.1,2654.6,40.8]
[1727075017017,0.764,2655.5,2654.8,5.2678]
[1727075017207,0.3848,2655.4,2654.8,5.2678]
[1727075017510,0.3848,2655.4,2655.1,0.3766]
[1727075017713,0.3848,2655.4,2654.8,5.2678]
[1727075018119,0.3848,2655.4,2655.2,0.37658]
[1727075018510,0.3848,2655.4,2655.3,0.37658]
[1727075019916,3.2078,2655.6,2655.4,0.37657]
[1727075020124,1.1264,2655.8,2655.2,2.06]
[1727075020315,0.3679,2655.8,2655.7,0.37652]
[1727075020513,0.3879,2656.1,2655.7,0.37652]
[1727075020723,0.7558,2656.1,2655.6,0.37653]
[1727075021314,0.7558,2656.1,2655.7,40.8]
[1727075021710,2.8158,2656.1,2655.7,40.8]
[1727075023620,3.19227,2656.1,2655.7,40.8]
[1727075024123,2.8158,2656.1,2655.7,40.8]
[1727075024320,3.19227,2656.1,2655.7,40.8]
[1727075024619,2.8158,2656.1,2655.7,41.17652]
[1727075024821,6.40007,2656.1,2655.7,40.8]
[1727075025817,2.06,2655.8,2655.4,1.48038235]
[1727075026012,0.3701,2655.7,2655.3,4.68818235]
[1727075026214,0.3629,2655.6,2655.3,44.38438]
[1727075027017,0.3629,2655.6,2655.4,1.59543552]
[1727075027222,0.3629,2655.6,2655.4,0.37657]
[1727075027714,0.3629,2655.6,2655.4,1.85695235]
[1727075027917,0.3629,2655.6,2655.4,1.85694235]
[1727075028428,0.3629,2655.6,2655.5,0.57682459]
[1727075028618,0.3629,2655.6,2655.5,1.79695949]
[1727075029318,0.3629,2655.6,2655.5,0.57682459]
[1727075029915,0.73944,2655.6,2655.3,1.48038235]
[1727075030224,0.73944,2655.6,2655.4,1.79700356]
[1727075030225,0.37655,2655.5,2655.4,1.79700356]
[1727075030413,0.37655,2655.5,2655.1,1.97384313]
[1727075030414,0.37657,2655.4,2655.1,1.48038235]
[1727075030617,0.37657,2655.4,2655.0,40.8]
[1727075030618,0.3672,2655.3,2655.0,1.48038235]
[1727075030817,0.3886,2655.2,2655.0,1.48038235]
[1727075031024,0.3886,2655.2,2655.1,0.57688281]
[1727075031732,0.3886,2655.2,2655.0,1.48038235]
[1727075031926,0.7652,2655.2,2654.9,42.28038235]
[1727075032131,0.7652,2655.2,2655.1,0.57687587]
[1727075032331,0.3886,2655.2,2654.9,1.48038235]
[1727075032533,0.7652,2655.2,2654.8,1.48038235]
[1727075032832,0.7652,2655.2,2654.9,1.79731653]
[1727075033022,0.7652,2655.2,2654.8,42.28038235]
[1727075033223,0.7652,2655.2,2654.9,1.7973273]
[1727075033422,0.7652,2655.2,2654.8,42.28038235]
[1727075033617,0.7652,2655.2,2654.9,1.79731185]
[1727075033819,0.7652,2655.2,2654.8,42.28038235]
[1727075034020,0.3886,2655.2,2654.9,1.79733013]
[1727075034321,0.7652,2655.2,2654.9,1.48038235]
[1727075034528,0.3886,2655.2,2654.9,1.48038235]
[1727075034726,0.3886,2655.2,2654.8,42.65702235]
[1727075034938,0.3886,2655.2,2654.9,1.22042685]
[1727075035224,0.3886,2655.2,2654.9,1.48038235]
[1727075035730,0.3886,2655.2,2654.8,42.65702235]
[1727075035930,0.3886,2655.2,2654.9,3.27773309]
[1727075036131,0.7652,2655.2,2654.8,42.28038235]
[1727075036424,3.58441,2655.1,2654.9,1.79735426]
[1727075036632,3.58441,2655.1,2654.8,1.48038235]
[1727075036837,3.58441,2655.1,2654.9,1.7974164]
[1727075037021,3.58441,2655.1,2654.8,1.48038235]
[1727075037227,3.58441,2655.1,2654.9,1.79741692]
[1727075037432,3.2078,2655.1,2654.8,1.48038235]
[1727075037625,3.2078,2655.1,2654.9,1.79753575]
[1727075037827,2.8252,2655.2,2654.8,1.48038235]
[1727075038033,2.8252,2655.2,2654.9,1.79748921]
[1727075038229,2.8252,2655.2,2654.8,1.48038235]
[1727075038432,2.8252,2655.2,2654.9,1.7974918]
[1727075038733,2.8252,2655.2,2654.8,1.48038235]
[1727075039032,2.8252,2655.2,2654.9,1.79754686]
[1727075039221,0.3886,2655.2,2654.8,1.48038235]
[1727075039534,0.3886,2655.2,2654.9,3.65458006]
[1727075039730,0.3886,2655.2,2655.0,1.79756771]
[1727075040029,0.3886,2655.2,2654.9,1.85701235]
[1727075040237,0.3886,2655.2,2655.0,1.79760262]
[1727075040429,0.3886,2655.2,2654.9,1.48038235]
[1727075040734,0.3886,2655.2,2655.0,2.17417182]
[1727075040931,0.3886,2655.2,2655.0,1.85700235]
[1727075041336,0.3886,2655.2,2655.0,0.37662]
[1727075041543,0.3886,2655.2,2655.0,1.85700235]
[1727075041933,0.3886,2655.2,2655.0,1.48038235]
[1727075042128,0.3886,2655.2,2655.0,1.85700235]
[1727075042439,0.3672,2655.3,2655.0,1.85700235]
[1727075042637,0.3672,2655.3,2655.1,0.57694747]
[1727075042831,0.3672,2655.3,2655.0,1.85700235]
[1727075043033,0.3672,2655.3,2655.1,0.57694888]
[1727075043332,0.3672,2655.3,2655.0,1.85700235]
[1727075043537,0.3672,2655.3,2655.1,0.57695893]
[1727075043728,0.3672,2655.3,2655.0,1.85700235]
[1727075043934,0.3672,2655.3,2655.1,0.95357141]
[1727075044133,0.3672,2655.3,2655.1,0.37661]
[1727075044742,0.3672,2655.3,2655.0,1.85700235]
[1727075045234,0.3672,2655.3,2655.0,0.37662]
[1727075045935,0.3672,2655.3,2655.1,0.37661]
[1727075046638,0.74379,2655.3,2654.9,2.23001235]
[1727075046939,0.3766,2655.2,2655.0,1.56295412]
[1727075047239,0.3766,2655.2,2655.0,0.98595167]
[1727075047537,0.74379,2655.3,2655.0,0.98595167]
[1727075047740,0.738,2655.2,2655.0,0.98595167]
[1727075050232,0.37661,2655.1,2655.0,0.98595167]
[1727075050432,0.37662,2655.0,2654.8,0.98595167]
[1727075050632,0.37662,2655.0,2654.4,0.2944]
[1727075050633,0.362,2654.9,2654.7,0.98595167]
[1727075050838,0.7567,2654.9,2654.7,0.98595167]
[1727075051231,0.7567,2654.9,2654.7,1.36262167]
[1727075051441,0.7567,2654.9,2654.7,0.98595167]
[1727075052133,0.7567,2654.9,2654.7,1.36261167]
[1727075052330,0.3947,2654.9,2654.7,1.36261167]
[1727075052531,0.3947,2654.9,2654.8,1.36260167]
[1727075052736,0.7499,2655.2,2654.9,0.37662]
[1727075052936,0.7499,2655.2,2654.9,1.74886476]
[1727075053429,0.7499,2655.2,2655.0,0.98564476]
[1727075053634,0.7499,2655.2,2655.0,1.36226476]
[1727075054142,3.97908,2655.4,2655.0,1.36226476]
[1727075054350,0.37658,2655.3,2655.1,0.98564476]
[1727075054647,3.97908,2655.4,2655.0,1.36226476]
[1727075054943,0.77127,2655.4,2655.0,1.36226476]
[1727075055147,0.3947,2655.4,2655.1,1.36224476]
[1727075055335,0.3947,2655.4,2655.1,0.98564476]
[1727075056838,0.77127,2655.4,2655.1,0.98564476]
[1727075058238,0.3947,2655.4,2655.3,0.37658]
[1727075058439,3.2078,2655.7,2655.4,0.37656]
[1727075058644,3.5895,2655.7,2655.4,0.75296]
[1727075059340,3.5895,2655.7,2655.4,1.73860476]
[1727075059649,0.3817,2655.7,2655.5,0.37655]
[1727075059850,3.2078,2656.0,2655.8,0.37651]
[1727075060138,0.3967,2656.0,2655.9,0.98564476]
[1727075060340,0.3967,2656.0,2655.9,41.78564476]
[1727075060735,0.3967,2656.0,2655.9,0.98564476]
[1727075061543,0.3967,2656.0,2655.8,42.16215476]
[1727075061851,0.3967,2656.0,2655.9,0.98564476]
[1727075062042,0.3967,2656.0,2655.8,42.16215476]
[1727075062944,0.3967,2656.0,2655.9,0.98564476]
[1727075063143,0.3967,2656.0,2655.8,42.16215476]
[1727075063542,0.3935,2656.2,2655.9,0.98564476]
[1727075063747,3.58422,2656.5,2656.1,1.36210476]
[1727075063748,0.7799,2656.4,2656.1,1.36210476]
[1727075064047,0.7799,2656.4,2656.2,0.37645]
[1727075064244,0.7799,2656.4,2656.1,1.36210476]
[1727075065748,0.7799,2656.4,2656.0,1.36211476]
[1727075065949,0.7799,2656.4,2656.1,0.37647]
[1727075066146,0.7799,2656.4,2656.2,0.37645]
[1727075066446,3.2078,2656.5,2656.3,0.37643]
[1727075067550,3.2078,2656.5,2656.1,1.27994476]
[1727075067853,3.2078,2656.5,2656.1,0.2943]
[1727075068045,3.2078,2656.5,2656.1,1.27994476]
[1727075068244,3.2078,2656.5,2656.1,0.2943]
[1727075068553,3.2078,2656.5,2656.2,0.37645]
[1727075070245,3.2078,2656.5,2656.3,0.37644]
[1727075070558,3.2078,2656.5,2656.2,0.37645]
[1727075071648,3.2078,2656.5,2656.1,0.67076]
[1727075071851,3.2078,2656.5,2656.2,0.37645]
[1727075072043,2.06,2656.4,2655.9,1.36804476]
[1727075072243,0.3741,2656.3,2655.9,1.74453476]
[1727075072452,0.75054,2656.3,2655.9,0.75889]
[1727075072657,0.3872,2656.2,2655.9,0.75889]
[1727075073350,0.3872,2656.2,2655.9,0.3824]
[1727075073548,0.3951,2656.1,2655.9,0.3824]
[1727075074556,0.3951,2656.1,2655.8,41.1765]
[1727075075160,0.3951,2656.1,2655.9,0.37649]
[1727075079250,0.3872,2656.2,2655.9,0.37649]
[1727075080756,0.3872,2656.2,2655.8,44.99344476]
[1727075081054,0.3872,2656.2,2656.1,0.37647]
[1727075081557,0.3903,2656.4,2656.2,0.37645]
[1727075082545,0.3903,2656.4,2656.1,0.3841]
[1727075083146,0.3903,2656.4,2656.2,0.37645]
[1727075084466,3.2078,2656.5,2656.2,0.37645]
[1727075084668,3.5973,2656.5,2656.2,0.37645]
[1727075085060,3.5973,2656.5,2656.1,2.4441]
[1727075085367,3.2078,2656.5,2656.4,0.37643]
[1727075086368,3.2078,2656.5,2656.3,0.37643]
[1727075087765,3.2078,2656.5,2656.2,0.67065]
[1727075088161,3.2078,2656.5,2656.3,0.37643]
[1727075090057,3.2078,2656.5,2656.4,0.37643]
[1727075093474,0.7814,2656.6,2656.4,0.37643]
[1727075093475,0.395,2656.6,2656.5,0.37641]
[1727075094670,0.395,2656.6,2656.5,4.14041]
[1727075095963,0.7839,2656.9,2656.5,9.0318]
[1727075096165,1.1526,2656.9,2656.8,0.37637]
[1727075096669,1.1526,2656.9,2656.5,1.36205476]
[1727075097062,1.1526,2656.9,2656.6,0.37639]
[1727075097675,1.1526,2656.9,2656.8,0.37637]
[1727075098365,0.7631,2656.9,2656.8,0.37637]
[1727075098673,0.7631,2656.9,2656.7,2.31202476]
[1727075098863,0.7631,2656.9,2656.8,0.37637]
[1727075099069,0.3687,2656.9,2656.8,0.37637]
[1727075099273,0.7725,2657.2,2656.8,0.37637]
[1727075099461,0.3747,2657.1,2657.0,0.37634]
[1727075099665,0.3747,2657.1,2657.0,1.32634]
[1727075099962,0.3747,2657.1,2657.0,42.12634]
[1727075100373,0.3747,2657.1,2657.0,40.8]
[1727075101872,15.4057,2657.1,2656.7,0.98564476]
[1727075102076,0.37637,2656.8,2656.5,0.98564476]
[1727075102274,1.1323,2656.7,2656.5,1.36205476]
[1727075102462,1.1323,2656.7,2656.5,0.98564476]
[1727075102868,1.50868,2656.7,2656.5,0.98564476]
[1727075103079,1.1323,2656.7,2656.5,0.98564476]
[1727075103375,1.50868,2656.7,2656.5,0.98564476]
[1727075103778,1.1323,2656.7,2656.5,0.98564476]
[1727075103973,1.1323,2656.7,2656.4,0.98564476]
[1727075103974,1.50868,2656.7,2656.4,0.98564476]
[1727075104368,1.50868,2656.7,2656.5,0.98564476]
[1727075105170,0.3764,2656.6,2656.5,0.98564476]
[1727075105575,0.3764,2656.6,2656.4,0.98564476]
[1727075106385,1.50869,2656.7,2656.4,0.98564476]
[1727075106682,0.3764,2656.6,2656.4,0.98564476]